[Event "Women Accentus DAQ Blitz 2022"]
[Site "Biel"]
[Date "2022.07.17"]
[Round "5.1"]
[White "Keymer, Cecilia"]
[Black "Cornileau, Juliette"]
[Result "0-1"]
[ECO "E11"]
[WhiteElo "1652"]
[BlackElo "1900"]
[Annotator "TA"]
[PlyCount "132"]
[EventDate "2022.07.17"]
[EventType "tourn"]
[EventCountry "SUI"]
[SourceTitle "playchess.com"]
[Source "ChessBase"]
[SourceQuality "1"]
[TimeControl "180+2"]

{[%evp 15,132,15,20,0,0,0,0,0,0,0,0,-6,-2,-33,-33,-34,-27,-25,0,0,0,0,0,0,0,0,54,-25,-25,-25,41,31,51,22,56,-82,-93,-87,-85,-84,-39,-78,-97,-135,-87,-72,-79,-83,-78,-445,-422,-429,-325,-301,-282,-266,-262,-353,-56,-428,-400,-395,-339,-257,0,-330,-245,-599,-404,-538,0,-562,-479,-587,-538,-606,-584,-12839,-12839,-12840,-12840,-12841,-12840,-12841,-12841,-12841,-12840,-12843,-12843,-12845,-12845,-12845,-12846,-12845,-12845,-12849,-12849,-12850,-27999,-27999,-27999,-27999,-27999,-27999,-27999,-27999,-27999,-27998,-27999,-27999,-27999,-27999,-27999,-27999,-27999,-27999,-27999,-27999,-27999]} 1. d4 {[%emt 0:00:02]} Nf6 {[%emt 0:00:09]} 2. c4 {[%emt 0:00:01]} e6 {[%emt 0:00:02]} 3. Nf3 {[%emt 0:00:01]} Bb4+ {[%emt 0:00:01]} 4. Bd2 {[%emt 0:00:02]} Qe7 {[%emt 0:00:01]} 5. a3 {[%emt 0:00:06]} Bxd2+ {[%emt 0:00:02]} 6. Qxd2 {[%emt 0:00:02]} d6 {[%emt 0:00:00]} 7. Nc3 {[%emt 0:00:02]} O-O {[%emt 0:00:05]} 8. e4 {[%emt 0:00:01]} e5 {[%emt 0:00:03]} 9. d5 {[%emt 0:00:05] E11: Bogo-Indian.} a5 {[%emt 0:00:00]} 10. Bd3 {[%emt 0:00:04]} Na6 {[%emt 0:00:02]} 11. O-O {[%emt 0:00:08] The position is equal.} Nc5 {[%emt 0:00:01]} 12. Bc2 {[%emt 0:00:01] Prevents Nb3.} a4 {[%emt 0:00:06]} 13. Rfe1 {[%emt 0:00:16] [#]} Nh5 $146 {[%emt 0:00:09]} ({Predecessor:} 13... Bg4 14. Qe3 Nfd7 15. h3 Bh5 16. Ne2 Bg6 17. Ng3 Rfb8 18. b4 axb3 19. Bxb3 Ra5 {1-0 (63) Nemec,H (1662)-Wiesner,P (1843) Maribor 2012}) 14. Qg5 {[%emt 0:00:13]} Qxg5 {[%emt 0:00:10]} 15. Nxg5 {[%emt 0:00:00]} h6 {[%emt 0:00:19]} 16. Nf3 {[%emt 0:00:04]} c6 {[%emt 0:01:04] Inhibits Nb5.} 17. g3 {[%emt 0:00:06]} Nf6 {[%emt 0:00:10]} 18. Kg2 {[%emt 0:00:03]} Rd8 {[%emt 0:00:11]} 19. Nd2 {[%emt 0:00:04]} cxd5 {[%emt 0:00:14]} 20. cxd5 {[%emt 0:00:08]} b6 {[%emt 0:00:01]} (20... Bd7 $11) 21. b4 {[%emt 0:00:09]} ({White should play} 21. f4 $14) 21... axb3 $1 $11 {[%emt 0:00:03]} 22. Nxb3 {[%emt 0:00:01]} Bd7 {[%emt 0:00:16]} (22... Nxb3 $11 23. Bxb3 Kf8) 23. Nxc5 $14 {[%emt 0:00:05]} bxc5 {[%emt 0:00:01]} 24. a4 {[%emt 0:00:08]} Ra5 {[%emt 0:00:02]} 25. Nb5 {[%emt 0:00:02]} (25. Reb1 $14 {keeps the upper hand.}) 25... Bxb5 $17 {[%emt 0:00:06]} 26. axb5 {[%emt 0:00:03]} Rxb5 {[%emt 0:00:00]} 27. Reb1 {[%emt 0:00:05]} Rb4 {[%emt 0:00:19]} 28. Kf3 {[%emt 0:00:06]} Rdb8 {[%emt 0:00:03]} 29. Bd3 {[%emt 0:00:08]} Rb3 {[%emt 0:00:03]} (29... Rxb1 $142 30. Rxb1 Rb4) 30. Rxb3 {[%emt 0:00:05]} Rxb3 {[%emt 0:00:01][%mdl 4096] Endgame KRB-KRN} 31. Ke2 {[%emt 0:00:02]} Rb2+ {[%emt 0:00:02]} 32. Ke3 $2 {[%emt 0:00:01][%mdl 8192] [#]} (32. Ke1 $17) 32... Ng4+ $19 {[%emt 0:00:01]} 33. Kf3 {[%emt 0:00:07]} Nxf2 {[%emt 0:00:04]} 34. Bc4 {[%emt 0:00:16]} Rb4 {[%emt 0:00:06] Strongly threatening ...Nxe4.} 35. Kxf2 {[%emt 0:00:04]} Rxc4 {[%emt 0:00:01] KR-KR} 36. Ke3 {[%emt 0:00:03]} Kf8 $2 {[%emt 0:00:01]} (36... f5 $19 37. Kf2 Rxe4) 37. h3 $2 {[%emt 0:00:06][%mdl 8192]} ({White should try} 37. Ra8+ $1 $15 Ke7 38. Ra7+ Kf6 39. Ra6) 37... Rc3+ {[%emt 0:00:00]} 38. Kf2 {[%emt 0:00:01]} Rc2+ {[%emt 0:00:01]} 39. Kf3 {[%emt 0:00:01]} Rc3+ {[%emt 0:00:01]} 40. Kf2 $1 {[%emt 0:00:02]} Rd3 {[%emt 0:00:03][%cal Of7f5]} 41. Rc1 $2 {[%emt 0:00:00]} (41. Ra8+ Ke7 42. Ra7+ Ke8 43. Ra8+ Ke7 44. Ra7+ Ke8 45. Ra8+ Ke7) 41... Rd2+ {[%emt 0:00:02]} 42. Kf3 {[%emt 0:00:00]} Rd3+ {[%emt 0:00:01]} 43. Kf2 $1 {[%emt 0:00:01]} Rd4 {[%emt 0:00:00]} 44. Kf3 {[%emt 0:00:01]} Ke7 {[%emt 0:00:01]} 45. Rc3 {[%emt 0:00:03]} c4 {[%emt 0:00:09] [#] White must now prevent ...Rd3+.} 46. Ke3 {[%emt 0:00:05] Prevents Rd3+.} Rd3+ {[%emt 0:00:02]} 47. Rxd3 {[%emt 0:00:02]} cxd3 {[%emt 0:00:00]} 48. Kxd3 {[%emt 0:00:01] KP-KP} Kf6 {[%emt 0:00:02]} 49. Ke3 {[%emt 0:00:00]} Kg5 {[%emt 0:00:01]} 50. Kf3 {[%emt 0:00:05]} f5 {[%emt 0:00:01]} 51. exf5 {[%emt 0:00:04]} Kxf5 {[%emt 0:00:01]} 52. Ke3 {[%emt 0:00:02]} h5 {[%emt 0:00:01]} 53. Kf3 {[%emt 0:00:04]} e4+ {[%emt 0:00:01]} 54. Ke3 {[%emt 0:00:05]} Ke5 55. g4 {[%emt 0:00:03]} hxg4 {[%emt 0:00:04]} 56. hxg4 {[%emt 0:00:01]} Kxd5 {[%emt 0:00:01]} 57. Kf4 {[%emt 0:00:02] Black mates.} Kd4 {[%emt 0:00:01]} 58. Kf5 {[%emt 0:00:06]} e3 {[%emt 0:00:00]} 59. Kg6 {[%emt 0:00:01]} e2 {[%emt 0:00:01]} 60. Kxg7 {[%emt 0:00:02]} e1=Q {[%emt 0:00:01]} 61. g5 {[%emt 0:00:01]} Qg3 {[%emt 0:00:09]} 62. g6 {[%emt 0:00:01]} Kc3 {[%emt 0:00:01]} 63. Kh7 {[%emt 0:00:03]} d5 {[%emt 0:00:01][%cal Bd6d5,Bd5d4,Bd4d3][%mdl 32]} 64. g7 {[%emt 0:00:01]} d4 {[%emt 0:00:02]} 65. g8=Q {[%emt 0:00:03]} Qxg8+ {[%emt 0:00:01]} 66. Kxg8 {[%emt 0:00:02]} d3 {[%emt 0:00:01] Weighted Error Value: White=0.87/Black=0.56} 0-1

[Event "Women Accentus DAQ Blitz 2022"]
[Site "Biel"]
[Date "2022.07.17"]
[Round "5.2"]
[White "Sumarriva Paulin, Laura"]
[Black "Avilova, Yulia"]
[Result "1-0"]
[ECO "B24"]
[WhiteElo "1913"]
[BlackElo "1646"]
[Annotator "TA"]
[PlyCount "69"]
[EventDate "2022.07.17"]
[EventType "tourn"]
[EventCountry "SUI"]
[SourceTitle "playchess.com"]
[Source "ChessBase"]
[SourceQuality "1"]
[TimeControl "180+2"]

{[%evp 15,68,-6,1,-14,100,-19,70,29,27,32,35,12,46,24,39,0,62,64,101,0,3,-23,-22,-17,4,0,0,0,86,75,122,47,45,34,41,46,62,43,52,32,62,60,130,130,193,200,441,443,1256,1261,29997,29998,29998,29999,29999]} 1. e4 {[%emt 0:00:02]} c5 {[%emt 0:00:01]} 2. Nc3 {[%emt 0:00:01]} d6 {[%emt 0:00:01]} 3. g3 {[%emt 0:00:01]} Nf6 {[%emt 0:00:05]} 4. Bg2 {[%emt 0:00:02]} e6 {[%emt 0:00:01]} 5. d3 {[%emt 0:00:02]} Be7 {[%emt 0:00:01]} 6. Nge2 {[%emt 0:00:03]} Nc6 {[%emt 0:00:01]} 7. O-O {[%emt 0:00:02]} O-O {[%emt 0:00:03]} 8. h3 {[%emt 0:00:04]} a6 {[%emt 0:00:01]} 9. f4 {[%emt 0:00:02] B24: Closed Sicilian: 3 g3 sidelines.} b5 {[%emt 0:00:02] [#]} (9... h6 $11) 10. a3 $146 {[%emt 0:00:20]} (10. e5 $1 $16 Nd5 11. Nxd5 exd5 12. c4 (12. Bxd5 Bb7 $14)) ({Predecessor:} 10. g4 Bb7 11. g5 Nd7 12. h4 Nd4 13. Be3 b4 14. Nb1 Nxe2+ 15. Qxe2 Qc7 16. Nd2 {1-0 (37) Andreikin,D (2726)-Karimov,A (2222) Chess.com INT 2020}) 10... b4 {[%emt 0:00:04]} (10... Bb7 $11) 11. axb4 {[%emt 0:00:02] White is slightly better.} (11. e5 $5 {[%cal Rg2c6]} Nd5 12. Nxd5 exd5 13. Bxd5 $16) 11... cxb4 {[%emt 0:00:01]} 12. Na4 {[%emt 0:00:03]} a5 {[%emt 0:00:08]} 13. c3 {[%emt 0:00:06]} Qc7 {[%emt 0:00:11]} 14. Kh2 {[%emt 0:00:08]} Ba6 {[%emt 0:00:12]} 15. d4 {[%emt 0:00:10][%cal Bd3d4,Bd4d5][%mdl 32]} Rfd8 {[%emt 0:00:22]} ({Black should try} 15... bxc3 $11 16. Naxc3 Nb4) 16. d5 $1 $14 {[%emt 0:00:10]} Nb8 {[%emt 0:00:17]} 17. Re1 {[%emt 0:00:05]} (17. dxe6 $16 {aiming for Be3.} fxe6 18. Nd4 Bxf1 19. Bxf1) 17... e5 $1 $11 {[%emt 0:00:09]} 18. f5 {[%emt 0:00:10]} Nbd7 {[%emt 0:00:05]} 19. Be3 {[%emt 0:00:05]} Nc5 {[%emt 0:00:21]} 20. Nxc5 {[%emt 0:00:06]} dxc5 {[%emt 0:00:01]} 21. g4 {[%emt 0:00:10]} Rac8 {[%emt 0:00:13]} (21... h6 $11 {remains equal.}) 22. Qc2 {[%emt 0:00:08]} c4 {[%emt 0:00:06]} (22... Ra8 $142) 23. cxb4 {[%emt 0:00:05]} (23. g5 $16 Nd7 24. f6 gxf6 25. gxf6) 23... Bxb4 $14 {[%emt 0:00:02]} 24. Bd2 {[%emt 0:00:03] [#] Hoping for Bxb4.} Bb5 {[%emt 0:00:08]} 25. Nc3 $36 {[%emt 0:00:11][%mdl 2048] White has some pressure.} Bd7 {[%emt 0:00:05]} 26. Rf1 {[%emt 0:00:17]} Ne8 {[%emt 0:00:03]} 27. g5 {[%emt 0:00:03]} f6 {[%emt 0:00:02]} 28. h4 {[%emt 0:00:04][%cal Bh3h4,Bh4g5][%mdl 32]} fxg5 {[%emt 0:00:04]} (28... Bc5 $14) 29. hxg5 $16 {[%emt 0:00:04]} Be7 {[%emt 0:00:04]} (29... Nd6 $16 {was necessary.} 30. Qd1 Be8) 30. Qd1 $18 {[%emt 0:00:03]} Nd6 $2 {[%emt 0:00:06] [#]} (30... Rb8) 31. Qh5 {[%emt 0:00:04]} Rf8 {[%emt 0:00:05]} (31... Ne8 $142 32. Rf3 (32. g6 h6 $16) 32... Nf6 33. gxf6 Be8) 32. g6 {[%emt 0:00:09]} hxg6 {[%emt 0:00:09]} 33. fxg6 {[%emt 0:00:03][%csl Gg6][%cal Rh5h7] White mates.} Rxf1 {[%emt 0:00:02]} 34. Qh7+ {[%emt 0:00:07]} Kf8 {[%emt 0:00:01]} 35. Qh8# {[%emt 0:00:01] Weighted Error Value: White=0.26 (precise) /Black=0.61} 1-0

[Event "Women Accentus DAQ Blitz 2022"]
[Site "Biel"]
[Date "2022.07.17"]
[Round "5.3"]
[White "Moracchini, Margaux"]
[Black "Zhuang, Yongzhe"]
[Result "1-0"]
[ECO "C42"]
[WhiteElo "1937"]
[BlackElo "1838"]
[Annotator "TA"]
[PlyCount "73"]
[EventDate "2022.07.17"]
[EventType "tourn"]
[EventCountry "SUI"]
[SourceTitle "playchess.com"]
[Source "ChessBase"]
[SourceQuality "1"]
[TimeControl "180+2"]

{[%evp 13,73,8,5,-1,0,-18,-19,-17,-8,-17,9,10,14,0,9,-32,0,0,7,0,5,0,24,23,22,39,111,106,111,109,104,97,100,88,71,43,41,-164,-156,-147,-149,-214,-214,-214,-210,-29997,-29998,-29998,-29997,-29999,-29998,-29998,-29997,-29999,-29998,-29998,-926,-6323,-6315,-5816,-6219,-2405]} 1. e4 {[%emt 0:00:02]} e5 {[%emt 0:00:01]} 2. Nf3 {[%emt 0:00:01]} Nf6 {[%emt 0:00:02]} 3. Nxe5 {[%emt 0:00:02]} d6 {[%emt 0:00:01]} 4. Nf3 {[%emt 0:00:01]} Nxe4 {[%emt 0:00:02]} 5. Nc3 {[%emt 0:00:01]} Nxc3 {[%emt 0:00:02]} 6. dxc3 {[%emt 0:00:01]} Be7 {[%emt 0:00:02]} 7. Bd3 {[%emt 0:00:11]} Nd7 {[%emt 0:00:02][%cal Bb8d7,Bd7c5,Bc5d3][%mdl 32]} 8. Bf4 {[%emt 0:00:09] C42: Petroff Defence: 3 Nxe5 and unusual White 3rd moves.} Nc5 {[%emt 0:00:01]} 9. Qd2 {[%emt 0:00:05]} Nxd3+ {[%emt 0:00:02]} 10. cxd3 {[%emt 0:00:03] The position is equal.} (10. Qxd3 {with more complications.} b6 11. O-O-O Bb7 12. Rde1) 10... O-O {[%emt 0:00:08]} 11. O-O {[%emt 0:00:05][%cal Bh1f1,Bf1e1,Be1e7][%mdl 32] [#]} d5 $146 {[%emt 0:00:35]} ({Predecessor:} 11... Bg4 12. Nd4 Bf6 13. Ne2 Re8 14. Rfe1 Qd7 15. Ng3 Rxe1+ 16. Rxe1 Re8 17. Rxe8+ Qxe8 {1-0 (64) Amador Garcia,I (2032)-Rodriguez Melian,J (2095) Gran Canaria 2019}) 12. Rfe1 {[%emt 0:00:08]} c5 {[%emt 0:00:13]} 13. d4 {[%emt 0:00:35]} c4 {[%emt 0:00:51]} 14. Bg5 {[%emt 0:00:15]} Bxg5 {[%emt 0:00:04]} (14... f6 $5 {[%cal Rf6g5]} 15. Bf4 Bf5 $11) 15. Qxg5 {[%emt 0:00:04]} h6 {[%emt 0:00:22]} 16. Qxd8 {[%emt 0:00:11]} Rxd8 {[%emt 0:00:02]} 17. Re7 {[%emt 0:00:01]} b5 {[%emt 0:00:12]} 18. Ne5 {[%emt 0:00:30]} Be6 {[%emt 0:00:02]} 19. Nc6 {[%emt 0:00:14][%csl LRa7,LRd8]} Rd7 {[%emt 0:00:02]} ({Better is} 19... Rd6 $14 20. Rc7 (20. Rxa7 $2 Rxa7 21. Nxa7 Bd7 $17) (20. Nxa7 Bd7 $17) 20... a5) 20. Rxd7 $16 {[%emt 0:00:03]} Bxd7 {[%emt 0:00:01][%mdl 4096] Endgame KRB-KRN} 21. Ne7+ {[%emt 0:00:01]} Kf8 {[%emt 0:00:06]} 22. Nxd5 {[%emt 0:00:01] White is more active.} Re8 {[%emt 0:00:18]} 23. Kf1 {[%emt 0:00:04] Prevents Re2.} Bf5 {[%emt 0:00:09]} 24. Ne3 {[%emt 0:00:09]} Bd3+ {[%emt 0:00:04]} 25. Ke1 $2 {[%emt 0:00:02] This move loses the game for White.} (25. Kg1 $14) 25... f5 $1 $19 {[%emt 0:00:04][%cal Bf7f5,Bf5f4][%mdl 32] Hoping for ...f4.} 26. g3 {[%emt 0:00:07] [#]} g5 $1 {[%emt 0:00:02][%cal Bg7g5,Bg5f4][%mdl 32] Strongly threatening ...f4.} 27. Kd2 {[%emt 0:00:17] [#]} (27. a4 $17 f4 28. gxf4 gxf4 29. axb5) 27... f4 $1 {[%emt 0:00:02]} 28. gxf4 {[%emt 0:00:01]} gxf4 {[%emt 0:00:01]} 29. Nd1 $2 {[%emt 0:00:09]} (29. a4 $19) 29... Re2+ {[%emt 0:00:02]} 30. Kc1 Rc2+ {[%emt 0:00:01]} 31. Kb1 {[%emt 0:00:01]} Rxf2+ {[%emt 0:00:04]} 32. Kc1 {[%emt 0:00:00]} Rc2+ {[%emt 0:00:05]} 33. Kb1 Rxh2+ {[%emt 0:00:02]} 34. Kc1 {[%emt 0:00:01]} Rh1 {[%emt 0:00:17]} (34... Rc2+ $142 35. Kb1 Rxc3#) 35. a4 {[%emt 0:00:02] Black is clearly winning.} Be2 {[%emt 0:00:04]} 36. Kd2 {[%emt 0:00:02]} Bxd1 {[%emt 0:00:03]} 37. Rxd1 {[%emt 0:00:03][%mdl 32768] Weighted Error Value: White=0.89/Black=0.25 (precise) . Loss on time!?} 1-0

[Event "Women Accentus DAQ Blitz 2022"]
[Site "Biel"]
[Date "2022.07.17"]
[Round "5.4"]
[White "Ciarletta, Iris"]
[Black "Tamrazyan, Gohar"]
[Result "1-0"]
[ECO "D32"]
[WhiteElo "1717"]
[BlackElo "1916"]
[Annotator "TA"]
[PlyCount "73"]
[EventDate "2022.07.17"]
[EventType "tourn"]
[EventCountry "SUI"]
[SourceTitle "playchess.com"]
[Source "ChessBase"]
[SourceQuality "1"]
[TimeControl "180+2"]

{[%evp 20,73,0,-33,0,-52,-20,-39,0,-10,0,0,13,-8,88,80,86,76,125,135,136,161,154,160,154,158,182,139,192,199,210,182,186,109,135,118,145,141,163,129,252,238,408,238,426,323,456,461,439,448,519,519,512,512,498,477]} 1. d4 {[%emt 0:00:02]} d5 {[%emt 0:00:00]} 2. c4 {[%emt 0:00:00]} e6 {[%emt 0:00:01]} 3. Nf3 {[%emt 0:00:02]} c5 {[%emt 0:00:00]} 4. cxd5 {[%emt 0:00:03]} exd5 5. dxc5 {[%emt 0:00:02]} Bxc5 {[%emt 0:00:06]} 6. e3 {[%emt 0:00:06]} Nc6 {[%emt 0:00:04]} 7. Nc3 {[%emt 0:00:02]} Nf6 {[%emt 0:00:02]} 8. Bb5 {[%emt 0:00:02]} O-O {[%emt 0:00:04]} 9. O-O {[%emt 0:00:04]} a6 {[%emt 0:00:14]} 10. Bxc6 {[%emt 0:00:09]} bxc6 {[%emt 0:00:00]} 11. h3 {[%emt 0:00:07] [#]} h6 $146 {[%emt 0:00:17] D32: Tarrasch Defence: Sidelines and lines without g3.} ({Predecessor:} 11... Re8 12. b3 h6 13. Bb2 Bb7 14. Rc1 Qd6 15. Rc2 Rad8 16. Rd2 Bb4 17. Nd4 Ne4 18. Rd3 Nxc3 19. Bxc3 Bxc3 20. Rxc3 {1-0 (49) Michalska,L (1231)-Blaszak,T Poznan 2021}) 12. Bd2 {[%emt 0:00:06]} ({White should try} 12. b3 $11) 12... Rb8 {[%emt 0:00:01]} 13. b3 {[%emt 0:00:06]} a5 {[%emt 0:00:15] Black is slightly better.} 14. Qc2 {[%emt 0:00:03]} Ba6 {[%emt 0:00:05]} 15. Rfc1 {[%emt 0:00:10][%cal Oc3d5]} Bb4 {[%emt 0:00:09]} 16. Na4 {[%emt 0:00:12]} Bxd2 {[%emt 0:00:17]} (16... Ba3 $11 {remains equal.}) 17. Qxd2 $16 {[%emt 0:00:01]} Ne4 {[%emt 0:00:03]} 18. Qe1 {[%emt 0:00:07]} Rc8 {[%emt 0:00:07]} (18... Bb5 $142) 19. Nc5 {[%emt 0:00:03]} Nxc5 {[%emt 0:00:31]} 20. Rxc5 {[%emt 0:00:02]} a4 {[%emt 0:00:09]} 21. b4 {[%emt 0:00:13]} ({But not} 21. bxa4 Bc4 $16) 21... Bc4 {[%emt 0:00:10]} 22. a3 {[%emt 0:00:01]} Qd6 {[%emt 0:00:04] Prevents Ne5.} 23. Nd4 {[%emt 0:00:02]} Rfe8 {[%emt 0:00:06]} (23... f5 $16) 24. Qd1 $18 {[%emt 0:00:08]} Bb5 {[%emt 0:00:07]} 25. Nxb5 {[%emt 0:00:03]} cxb5 {[%emt 0:00:01]} 26. Rxd5 {[%emt 0:00:06]} (26. Rxb5 $18 Red8 27. Ra5 (27. Qxa4 d4 $16)) 26... Qc6 {[%emt 0:00:08]} 27. Rc5 {[%emt 0:00:02]} Qb7 {[%emt 0:00:05]} 28. Rac1 {[%emt 0:00:03]} Rcd8 {[%emt 0:00:06] Prevents Qd3.} 29. Qe2 {[%emt 0:00:03]} Re6 {[%emt 0:00:03]} (29... Rd5 $16 30. Rc7 Qa8) 30. Qxb5 {[%emt 0:00:04]} Qe4 {[%emt 0:00:06] [#]} (30... Qxb5 {was worth a try.} 31. Rxb5 Rd3) 31. Qc4 {[%emt 0:00:07]} (31. Rc8 $142 Rxc8 32. Rxc8+ Kh7 33. Qxa4) 31... Qb7 $2 {[%emt 0:00:12]} (31... Qxc4 32. R5xc4 (32. R1xc4 Rd1+ 33. Kh2 Ra1 $18) 32... Rd3) 32. Rc7 {[%emt 0:00:06]} Qa8 {[%emt 0:00:06]} (32... Qd5 {was called for.} 33. Qxd5 Rxd5) 33. Rc8 {[%emt 0:00:05] White is clearly winning.} Rxc8 {[%emt 0:00:04]} 34. Qxc8+ {[%emt 0:00:01]} Qxc8 {[%emt 0:00:03]} 35. Rxc8+ {[%emt 0:00:01]} Kh7 {[%emt 0:00:01]} 36. Ra8 {[%emt 0:00:01]} Rd6 {[%emt 0:00:03]} 37. Rxa4 {[%emt 0:00:02] Weighted Error Value: White=0.25 (precise) /Black=0.47} 1-0

[Event "Women Accentus DAQ Blitz 2022"]
[Site "Biel"]
[Date "2022.07.17"]
[Round "6.1"]
[White "Sumarriva Paulin, Laura"]
[Black "Cornileau, Juliette"]
[Result "1-0"]
[ECO "E52"]
[WhiteElo "1913"]
[BlackElo "1900"]
[Annotator "TA"]
[PlyCount "49"]
[EventDate "2022.07.17"]
[EventType "tourn"]
[EventCountry "SUI"]
[SourceTitle "playchess.com"]
[Source "ChessBase"]
[SourceQuality "1"]
[TimeControl "180+2"]

{[%evp 20,49,17,0,0,4,16,16,16,6,29,20,50,39,45,13,45,0,44,-150,-133,-187,-149,-145,-137,-150,86,85,2124,2118,1968,1950]} 1. d4 {[%emt 0:00:02]} Nf6 {[%emt 0:00:03]} 2. c4 {[%emt 0:00:02]} e6 {[%emt 0:00:02]} 3. Nc3 {[%emt 0:00:01]} Bb4 {[%emt 0:00:02]} 4. e3 {[%emt 0:00:03]} d5 {[%emt 0:00:06]} 5. a3 {[%emt 0:00:04]} Bxc3+ {[%emt 0:00:02]} 6. bxc3 {[%emt 0:00:02]} O-O {[%emt 0:00:02]} 7. Bd3 {[%emt 0:00:05]} b6 {[%emt 0:00:21]} 8. Nf3 {[%emt 0:00:03]} Ba6 {[%emt 0:00:19]} 9. cxd5 {[%emt 0:00:04]} Bxd3 {[%emt 0:00:13]} 10. Qxd3 {[%emt 0:00:01]} exd5 {[%emt 0:00:01]} 11. O-O {[%emt 0:00:06]} Nc6 {[%emt 0:00:04][%cal Bb8c6,Bc6a5,Ba5b3][%mdl 32] E52: Nimzo-Indian: Rubinstein: 4...0-0 5 Nf3 d5 6 Bd3 b6.} 12. c4 {[%emt 0:00:06]} dxc4 {[%emt 0:00:07]} 13. Qxc4 {[%emt 0:00:02] [#]} Na5 $146 {[%emt 0:00:01] The position is equal.} ({Predecessor:} 13... Qd5 14. Qxd5 Nxd5 15. Bd2 Nce7 16. Rac1 Rac8 17. e4 Nf6 18. Rfe1 Rfe8 19. Ne5 c5 20. dxc5 Rxc5 21. Rxc5 bxc5 {0-1 (48) Weetik,V (2423)-Alinasab,M (2355) Chess.com INT 2022}) 14. Qc2 {[%emt 0:00:16]} Qd5 {[%emt 0:00:05] Against e4} 15. Qxc7 {[%emt 0:00:17]} Nb3 {[%emt 0:00:17]} 16. Rb1 {[%emt 0:00:03]} Na5 {[%emt 0:00:26]} 17. Qg3 {[%emt 0:00:20]} Ne4 {[%emt 0:00:04]} 18. Qg4 {[%emt 0:00:20]} (18. Qe5 $5 {[%cal Re5d5]} Rfd8 19. Qxd5 Rxd5 20. Ne5 $14) 18... Nc3 {[%emt 0:00:04]} 19. Ra1 $2 {[%emt 0:00:02] [#]} (19. Rb2 $14 {keeps the upper hand.}) 19... Nb3 $17 {[%emt 0:00:17] Pair of Knights!} 20. Bb2 {[%emt 0:00:07]} (20. Bd2 $17 Nxa1 21. Bxc3) 20... Nxa1 {[%emt 0:00:12]} 21. Bxc3 {[%emt 0:00:01]} Nb3 {[%emt 0:00:01]} 22. Nh4 {[%emt 0:00:16][%cal Bf3h4,Bh4f5,Bf5h6][%mdl 32] [#] Threatens to win with Nf5.} Qe6 {[%emt 0:00:10]} (22... g6 $17 {aiming for ...Rac8.} 23. Rb1 Rac8) 23. Nf5 $16 {[%emt 0:00:07][%csl Gf5][%cal Rg4g7][%mdl 1024] White has strong compensation.} g6 {[%emt 0:00:06][%mdl 8192]} (23... Qf6 $16) 24. Nh6+ $18 {[%emt 0:00:10]} Kg7 {[%emt 0:00:12]} 25. d5+ $1 {[%emt 0:00:00] Weighted Error Value: White=0.44/Black=0.52} 1-0